[Event "FIDE WCCC Open-08 2024"]
[Site "Montesilvano"]
[Date "2024.11.22"]
[Round "7.35"]
[White "Sivan, Leeor"]
[Black "Khantulga, Tuvshinbayar"]
[Result "1-0"]
[ECO "C56"]
[WhiteElo "1464"]
[BlackElo "1611"]
[Annotator "NA RC"]
[PlyCount "93"]
[EventDate "2024.11.18"]
[EventType "swiss"]
[EventCountry "ITA"]
[SourceTitle "playchess.com"]
[Source "ChessBase"]
[SourceQuality "1"]
[TimeControl "5400+30"]

1. e4 {[%emt 0:00:50]} e5 {[%emt 0:00:32]} 2. Nf3 {[%emt 0:00:28]} Nc6 {[%emt 0:00:06]} 3. d4 {[%emt 0:00:13]} exd4 {[%emt 0:00:09]} 4. Bc4 {[%emt 0:00:09]} Nf6 {[%emt 0:00:05]} 5. e5 {[%emt 0:00:12]} d5 {[%emt 0:00:18]} 6. Bb5 {[%emt 0:00:09]} Ne4 {[%emt 0:00:06]} 7. Nxd4 {[%emt 0:00:34]} Bd7 {[%emt 0:00:07]} 8. Bxc6 {[%emt 0:01:45]} bxc6 {[%emt 0:00:07]} 9. O-O {[%emt 0:04:01]} Bc5 {[%emt 0:00:09]} 10. f3 {[%emt 0:00:39]} Ng5 {[%emt 0:00:09]} 11. Be3 {[%emt 0:01:27]} Bb6 {[%emt 0:02:15]} 12. Qd2 {[%emt 0:04:27]} h6 {[%emt 0:00:56]} 13. Kh1 {[%emt 0:16:55]} Qe7 {[%emt 0:01:54]} 14. Re1 {[%emt 0:03:43]} c5 {[%emt 0:02:17]} 15. Nb3 {[%emt 0:01:09]} d4 {[%emt 0:00:37]} 16. Bf2 {[%emt 0:00:24]} Bc6 {[%emt 0:02:28]} 17. Qd3 {[%emt 0:08:40]} O-O-O {[%emt 0:02:12]} 18. a4 {[%emt 0:00:51]} Bd5 {[%emt 0:06:05]} 19. N1d2 {[%emt 0:01:16]} Qe6 {[%emt 0:01:30]} 20. Qe2 {[%emt 0:04:54]} Bxb3 {[%emt 0:03:16]} 21. Qa6+ {[%emt 0:03:32]} Kb8 {[%emt 0:00:41]} 22. cxb3 {[%emt 0:00:47]} c6 {[%emt 0:01:09]} 23. Nc4 {[%emt 0:01:32]} Bc7 {[%emt 0:01:09]} 24. Rac1 {[%emt 0:08:41]} Qd5 {[%emt 0:04:09]} 25. Nd6 {[%emt 0:08:59]} Bxd6 {[%emt 0:01:13]} 26. exd6 {[%emt 0:00:08]} Rxd6 {[%emt 0:00:57]} 27. Bg3 {[%emt 0:00:12]} Ka8 {[%emt 0:01:31]} 28. Re5 {[%emt 0:01:45]} Qxb3 {[%emt 0:02:08]} 29. Re7 {[%emt 0:02:40]} Qb6 {[%emt 0:00:37]} 30. Qxb6 {[%emt 0:00:15]} axb6 {[%emt 0:00:08]} 31. Bxd6 {[%emt 0:00:31]} d3 {[%emt 0:00:17]} 32. Re3 {[%emt 0:00:34]} d2 {[%emt 0:01:59]} 33. Rd1 {[%emt 0:00:14]} f5 {[%emt 0:01:20]} 34. Rxd2 {[%emt 0:00:45]} Rd8 {[%emt 0:00:29]} 35. Red3 {[%emt 0:01:07]} c4 {[%emt 0:00:50]} 36. Rd4 {[%emt 0:00:12]} c5 {[%emt 0:00:44]} 37. Bxc5 {[%emt 0:00:27]} Rb8 {[%emt 0:00:51]} 38. Bb4 {[%emt 0:00:50]} Ne6 {[%emt 0:00:40]} 39. Rxc4 {[%emt 0:00:21]} Re8 {[%emt 0:01:04]} 40. h3 {[%emt 0:00:36]} g5 {[%emt 0:00:38]} 41. Re2 {[%emt 0:00:53]} Kb7 {[%emt 0:01:23]} 42. Rd4 {[%emt 0:00:57]} g4 {[%emt 0:00:48]} 43. fxg4 {[%emt 0:00:21]} fxg4 {[%emt 0:00:25]} 44. Rxg4 {[%emt 0:23:25]} Ng7 {[%emt 0:00:29]} 45. Rxg7+ {[%emt 0:00:00]} Ka6 {[%emt 0:00:15]} 46. Rxe8 {[%emt 0:00:00]} b5 {[%emt 0:00:21]} 47. Re6# {[%emt 0:00:00]} 1-0

[Event "FIDE WCCC Open-08 2024"]
[Site "Montesilvano"]
[Date "2024.11.22"]
[Round "7.38"]
[White "Arsenijevic, Matija"]
[Black "Thomas, Robert K"]
[Result "1-0"]
[ECO "A59"]
[WhiteElo "1700"]
[BlackElo "2166"]
[Annotator "RC"]
[PlyCount "92"]
[EventDate "2024.11.18"]
[EventType "swiss"]
[EventCountry "ITA"]
[SourceTitle "playchess.com"]
[Source "ChessBase"]
[SourceQuality "1"]
[TimeControl "5400+30"]

1. d4 {[%emt 0:00:01]} Nf6 {[%emt 0:00:05]} 2. c4 {[%emt 0:00:10]} c5 {[%emt 0:00:08]} 3. d5 {[%emt 0:00:04]} b5 {[%emt 0:00:03]} 4. cxb5 {[%emt 0:00:07]} a6 {[%emt 0:00:05]} 5. bxa6 {[%emt 0:00:11]} Bxa6 {[%emt 0:00:12]} 6. Nc3 {[%emt 0:00:19]} d6 {[%emt 0:00:15]} 7. e4 {[%emt 0:00:51]} Bxf1 {[%emt 0:00:27]} 8. Kxf1 {[%emt 0:00:05]} g6 {[%emt 0:00:05]} 9. g3 {[%emt 0:00:17]} Bg7 {[%emt 0:00:11]} 10. Kg2 {[%emt 0:00:35]} O-O {[%emt 0:00:07]} 11. Nf3 {[%emt 0:02:43]} Nbd7 {[%emt 0:00:44]} 12. a4 {[%emt 0:02:08]} Ng4 {[%emt 0:00:20]} 13. Qe2 {[%emt 0:02:51]} Nge5 {[%emt 0:00:10]} 14. Ra3 {[%emt 0:11:17]} Qc7 {[%emt 0:06:29]} 15. Nb5 {[%emt 0:04:17]} Qb6 {[%emt 0:03:40]} 16. b3 {[%emt 0:10:16]} Rfb8 {[%emt 0:02:06]} 17. h4 {[%emt 0:04:50]} Rf8 {[%emt 0:05:43]} 18. h5 {[%emt 0:07:42]} f5 {[%emt 0:02:14]} 19. Bb2 {[%emt 0:14:50]} Rf7 {[%emt 0:03:13]} 20. Ng5 {[%emt 0:03:50]} Rf6 {[%emt 0:04:31]} 21. f4 {[%emt 0:02:57]} Ng4 {[%emt 0:02:10]} 22. Bxf6 {[%emt 0:01:05]} exf6 {[%emt 0:03:07]} 23. Ne6 {[%emt 0:30:34]} c4 {[%emt 0:01:55]} 24. bxc4 {[%emt 0:00:00]} Nc5 {[%emt 0:01:30]} 25. Nxc5 {[%emt 0:01:00]} Qxc5 {[%emt 0:00:29]} 26. Re1 {[%emt 0:00:00]} Re8 {[%emt 0:01:06]} 27. Qf3 {[%emt 0:01:00]} Qb4 {[%emt 0:03:01]} 28. Raa1 {[%emt 0:00:00]} gxh5 {[%emt 0:02:04]} 29. Qc3 {[%emt 0:00:00]} Qc5 {[%emt 0:02:39]} 30. Qd4 {[%emt 0:00:00]} Qb4 {[%emt 0:00:57]} 31. Reb1 {[%emt 0:00:00]} Qa5 {[%emt 0:02:40]} 32. Nxd6 {[%emt 0:00:00]} Rxe4 {[%emt 0:03:16]} 33. Nxe4 {[%emt 0:00:00]} fxe4 {[%emt 0:00:20]} 34. Rb5 {[%emt 0:00:00]} Qc7 {[%emt 0:01:28]} 35. Rc1 {[%emt 0:00:00]} f5 {[%emt 0:02:33]} 36. Qc5 {[%emt 0:00:00]} Qd8 {[%emt 0:01:57]} 37. Rcb1 {[%emt 0:00:00]} Bf8 {[%emt 0:04:51]} 38. Qxf8+ {[%emt 0:00:00]} Qxf8 {[%emt 0:02:34]} 39. Rb8 {[%emt 0:00:00]} e3 {[%emt 0:00:56]} 40. Rxf8+ {[%emt 0:00:00]} Kxf8 {[%emt 0:00:05]} 41. Kf3 {[%emt 0:00:00]} Ke7 {[%emt 0:01:11]} 42. a5 {[%emt 0:00:00]} Kd6 {[%emt 0:00:24]} 43. a6 {[%emt 0:00:00]} Kc5 {[%emt 0:00:09]} 44. a7 {[%emt 0:00:00]} Kd4 {[%emt 0:00:27]} 45. a8=Q {[%emt 0:00:00]} Kd3 {[%emt 0:00:11]} 46. Qa3+ {[%emt 0:00:00]} Kd4 {[%emt 0:00:04]} 1-0

[Event "FIDE WCCC Open-08 2024"]
[Site "Montesilvano"]
[Date "2024.11.22"]
[Round "7.39"]
[White "Bisetto, Alessandro Federico"]
[Black "Huang, Joshua Kai-En"]
[Result "1-0"]
[ECO "B56"]
[WhiteElo "1671"]
[BlackElo "1424"]
[Annotator "NA RC"]
[PlyCount "73"]
[EventDate "2024.11.18"]
[EventType "swiss"]
[EventCountry "ITA"]
[SourceTitle "playchess.com"]
[Source "ChessBase"]
[SourceQuality "1"]
[TimeControl "5400+30"]

1. e4 {[%emt 0:00:07]} c5 {[%emt 0:00:09]} 2. Nf3 {[%emt 0:00:12]} d6 {[%emt 0:00:11]} 3. d4 {[%emt 0:00:07]} cxd4 {[%emt 0:00:22]} 4. Nxd4 {[%emt 0:00:27]} Nf6 {[%emt 0:00:24]} 5. Nc3 {[%emt 0:01:37]} Nc6 {[%emt 0:02:31]} 6. Be3 {[%emt 0:08:12]} e5 {[%emt 0:00:59]} 7. Nb3 {[%emt 0:06:18]} Be6 {[%emt 0:02:33]} 8. Qd2 {[%emt 0:06:59]} a5 {[%emt 0:02:34]} 9. a4 {[%emt 0:04:10]} Nb4 {[%emt 0:01:49]} 10. Bb5+ {[%emt 0:00:07]} Bd7 {[%emt 0:02:02]} 11. O-O {[%emt 0:02:04]} Be7 {[%emt 0:01:58]} 12. f3 {[%emt 0:01:38]} O-O {[%emt 0:01:03]} 13. Nc1 {[%emt 0:05:48]} Rc8 {[%emt 0:01:46]} 14. Nd3 {[%emt 0:00:45]} Bxb5 {[%emt 0:03:16]} 15. axb5 {[%emt 0:59:29]} d5 {[%emt 0:03:22]} 16. exd5 {[%emt 0:00:00]} Nfxd5 {[%emt 1:13:31]} 17. Nxb4 {[%emt 0:00:00]} Bxb4 {[%emt 0:00:00]} 18. Qxd5 {[%emt 0:00:00]} Bxc3 {[%emt 0:00:00]} 19. Qxd8 {[%emt 0:00:00]} Rfxd8 {[%emt 0:01:30]} 20. bxc3 {[%emt 0:00:00]} Rxc3 {[%emt 0:00:00]} 21. Bb6 {[%emt 0:00:00]} Rdc8 {[%emt 0:00:00]} 22. Rxa5 {[%emt 0:00:00]} Rxc2 {[%emt 0:00:00]} 23. Rfa1 {[%emt 0:00:00]} Rc1+ {[%emt 0:00:00]} 24. Rxc1 {[%emt 0:00:00]} Rxc1+ {[%emt 0:00:00]} 25. Kf2 {[%emt 0:00:00]} f6 {[%emt 0:00:00]} 26. Ra8+ {[%emt 0:00:00]} Kf7 {[%emt 0:00:00]} 27. Ra7 {[%emt 0:00:00]} Kg6 {[%emt 0:00:00]} 28. Rxb7 {[%emt 0:00:00]} Rc2+ {[%emt 0:00:00]} 29. Kg3 {[%emt 0:00:00]} f5 {[%emt 0:00:00]} 30. Bd8 {[%emt 0:00:00]} e4 {[%emt 0:00:00]} 31. fxe4 {[%emt 0:00:00]} fxe4 {[%emt 0:00:00]} 32. Ba5 {[%emt 0:00:00]} e3 {[%emt 0:00:00]} 33. b6 {[%emt 0:00:00]} Ra2 {[%emt 0:00:00]} 34. Ra7 {[%emt 0:00:00]} Rb2 {[%emt 0:00:00]} 35. b7 {[%emt 0:00:00]} h5 {[%emt 0:00:00]} 36. h4 {[%emt 0:00:00]} Kf5 {[%emt 0:00:00]} 37. Bc7 {[%emt 0:00:00]} 1-0

[Event "FIDE WCCC Open-08 2024"]
[Site "Montesilvano"]
[Date "2024.11.22"]
[Round "7.40"]
[White "Chanishvili, Noa"]
[Black "Morais, Benjamin Guedes"]
[Result "1-0"]
[ECO "B13"]
[WhiteElo "1553"]
[BlackElo "1652"]
[Annotator "NA RC"]
[PlyCount "119"]
[EventDate "2024.11.18"]
[EventType "swiss"]
[EventCountry "ITA"]
[SourceTitle "playchess.com"]
[Source "ChessBase"]
[SourceQuality "1"]
[TimeControl "5400+30"]

1. e4 {[%emt 0:00:05]} c6 {[%emt 0:00:08]} 2. d4 {[%emt 0:00:13]} d5 {[%emt 0:00:13]} 3. exd5 {[%emt 0:00:22]} cxd5 {[%emt 0:00:05]} 4. Bd3 {[%emt 0:00:21]} Nc6 {[%emt 0:00:14]} 5. c3 {[%emt 0:00:21]} Nf6 {[%emt 0:00:14]} 6. Bf4 {[%emt 0:00:34]} Bg4 {[%emt 0:00:46]} 7. Qb3 {[%emt 0:00:41]} Qd7 {[%emt 0:00:24]} 8. Bb5 {[%emt 0:01:25]} e6 {[%emt 0:00:20]} 9. Nd2 {[%emt 0:00:29]} Bd6 {[%emt 0:00:24]} 10. Bxd6 {[%emt 0:00:40]} Qxd6 {[%emt 0:00:18]} 11. Ngf3 {[%emt 0:00:35]} O-O {[%emt 0:00:16]} 12. h3 {[%emt 0:02:15]} Bf5 {[%emt 0:00:20]} 13. O-O {[%emt 0:01:15]} Ne4 {[%emt 0:05:07]} 14. Rfe1 {[%emt 0:04:59]} Qf4 {[%emt 0:01:21]} 15. Rad1 {[%emt 0:04:14]} Nxd2 {[%emt 0:10:27]} 16. Rxd2 {[%emt 0:00:24]} Bxh3 {[%emt 0:01:07]} 17. gxh3 {[%emt 0:01:20]} Qxf3 {[%emt 0:00:08]} 18. Rd3 {[%emt 0:00:46]} Qf6 {[%emt 0:00:38]} 19. Rg3 {[%emt 0:00:55]} a6 {[%emt 0:01:26]} 20. Bd3 {[%emt 0:00:15]} b5 {[%emt 0:00:24]} 21. Qc2 {[%emt 0:01:05]} h6 {[%emt 0:00:34]} 22. Ree3 {[%emt 0:00:34]} Rac8 {[%emt 0:01:58]} 23. Qd2 {[%emt 0:00:21]} Qf4 {[%emt 0:02:14]} 24. Rg4 {[%emt 0:00:41]} Qf6 {[%emt 0:01:00]} 25. Reg3 {[%emt 0:01:29]} Kh8 {[%emt 0:00:23]} 26. Rxg7 {[%emt 0:02:50]} Qxg7 {[%emt 0:02:14]} 27. Rxg7 {[%emt 0:00:03]} Kxg7 {[%emt 0:00:11]} 28. Kh2 {[%emt 0:00:35]} Ne7 {[%emt 0:03:23]} 29. Qf4 {[%emt 0:01:28]} Ng6 {[%emt 0:01:16]} 30. Qg4 {[%emt 0:00:44]} f5 {[%emt 0:03:57]} 31. Qg3 {[%emt 0:01:27]} Rf6 {[%emt 0:02:50]} 32. Qd6 {[%emt 0:02:17]} Rcf8 {[%emt 0:02:08]} 33. Qxa6 {[%emt 0:01:25]} e5 {[%emt 0:00:05]} 34. Qb7+ {[%emt 0:00:48]} R8f7 {[%emt 0:01:06]} 35. Qxd5 {[%emt 0:01:02]} e4 {[%emt 0:01:41]} 36. Bxb5 {[%emt 0:05:00]} Nh4 {[%emt 0:02:53]} 37. Be2 {[%emt 0:01:11]} Rg6 {[%emt 0:01:46]} 38. Bh5 {[%emt 0:03:32]} Rg2+ {[%emt 0:01:44]} 39. Kh1 {[%emt 0:00:33]} Rf6 {[%emt 0:02:38]} 40. Qd7+ {[%emt 0:01:29]} Kg8 {[%emt 0:02:59]} 41. Qd8+ {[%emt 0:00:26]} Rf8 {[%emt 0:00:09]} 42. Qxh4 {[%emt 0:00:19]} Rg5 {[%emt 0:00:06]} 43. f4 {[%emt 0:01:19]} exf3 {[%emt 0:00:05]} 44. Bxf3 {[%emt 0:00:34]} Kg7 {[%emt 0:00:08]} 45. Qf2 {[%emt 0:00:40]} Rg8 {[%emt 0:00:42]} 46. a4 {[%emt 0:01:15]} Kh8 {[%emt 0:00:45]} 47. Kh2 {[%emt 0:00:48]} f4 {[%emt 0:00:05]} 48. a5 {[%emt 0:00:34]} Rxa5 {[%emt 0:02:49]} 49. Qh4 {[%emt 0:00:20]} Kg7 {[%emt 0:02:37]} 50. Qxf4 {[%emt 0:01:28]} Rf8 {[%emt 0:03:13]} 51. Qc7+ {[%emt 0:00:24]} Rf7 {[%emt 0:00:07]} 52. Qxa5 {[%emt 0:00:24]} Rxf3 {[%emt 0:00:06]} 53. Qe5+ {[%emt 0:01:15]} Rf6 {[%emt 0:00:09]} 54. b4 {[%emt 0:00:24]} Kf7 {[%emt 0:00:05]} 55. d5 {[%emt 0:00:35]} Rf2+ {[%emt 0:00:06]} 56. Kg3 {[%emt 0:00:35]} Rf6 {[%emt 0:00:11]} 57. d6 {[%emt 0:00:46]} Rg6+ {[%emt 0:02:44]} 58. Kh2 {[%emt 0:03:10]} h5 {[%emt 0:01:22]} 59. Qe7+ {[%emt 0:00:28]} Kg8 {[%emt 0:00:12]} 60. d7 {[%emt 0:00:32]} 1-0

[Event "FIDE WCCC Open-08 2024"]
[Site "Montesilvano"]
[Date "2024.11.22"]
[Round "7.42"]
[White "Vrsalovic Acuna. Stjepan Anton"]
[Black "Agar, Garig"]
[Result "0-1"]
[ECO "C47"]
[WhiteElo "1452"]
[BlackElo "1534"]
[Annotator "NA RC"]
[PlyCount "68"]
[EventDate "2024.11.18"]
[EventType "swiss"]
[EventCountry "ITA"]
[SourceTitle "playchess.com"]
[Source "ChessBase"]
[SourceQuality "1"]
[TimeControl "5400+30"]

1. e4 {[%emt 0:00:03]} e5 {[%emt 0:00:13]} 2. Nf3 {[%emt 0:00:49]} Nc6 {[%emt 0:00:17]} 3. Nc3 {[%emt 0:01:12]} Nf6 {[%emt 0:00:28]} 4. d4 {[%emt 0:00:49]} exd4 {[%emt 0:02:17]} 5. Nxd4 {[%emt 0:00:57]} Bb4 {[%emt 0:00:29]} 6. Nxc6 {[%emt 0:00:58]} bxc6 {[%emt 0:00:09]} 7. Bd3 {[%emt 0:01:33]} d5 {[%emt 0:00:08]} 8. Qe2 {[%emt 0:02:54]} O-O {[%emt 0:00:35]} 9. O-O {[%emt 0:01:33]} Re8 {[%emt 0:00:38]} 10. e5 {[%emt 0:06:51]} Ng4 {[%emt 0:03:14]} 11. f4 {[%emt 0:01:25]} f6 {[%emt 0:01:21]} 12. h3 {[%emt 0:01:23]} Bc5+ {[%emt 0:00:06]} 13. Kh1 {[%emt 0:02:24]} fxe5 {[%emt 0:00:11]} 14. fxe5 {[%emt 0:05:48]} Nxe5 {[%emt 0:01:32]} 15. Bf4 {[%emt 0:05:19]} Nxd3 {[%emt 0:01:12]} 16. Qxd3 {[%emt 0:03:17]} Rb8 {[%emt 0:01:11]} 17. Qg3 {[%emt 0:02:57]} Bd6 {[%emt 0:01:49]} 18. b3 {[%emt 0:01:45]} Ba6 {[%emt 0:00:52]} 19. Rfe1 {[%emt 0:01:10]} Bxf4 {[%emt 0:01:25]} 20. Qxf4 {[%emt 0:01:09]} Qd6 {[%emt 0:00:42]} 21. Qxd6 {[%emt 0:00:47]} cxd6 {[%emt 0:00:15]} 22. Kh2 {[%emt 0:00:45]} Re5 {[%emt 0:01:08]} 23. Rxe5 {[%emt 0:02:05]} dxe5 {[%emt 0:00:13]} 24. Re1 {[%emt 0:00:23]} e4 {[%emt 0:00:29]} 25. Kg3 {[%emt 0:01:15]} Kf7 {[%emt 0:00:51]} 26. Na4 {[%emt 0:01:01]} Re8 {[%emt 0:18:16]} 27. Nc5 {[%emt 0:01:13]} Bc8 {[%emt 0:00:20]} 28. Kf4 {[%emt 0:09:34]} Rf8 {[%emt 0:01:50]} 29. Ke5 {[%emt 0:00:56]} Ke7 {[%emt 0:00:34]} 30. Re2 {[%emt 0:03:33]} Rf5+ {[%emt 0:01:28]} 31. Kd4 {[%emt 0:02:27]} Kd6 {[%emt 0:00:51]} 32. b4 {[%emt 0:08:41]} Rf1 {[%emt 0:00:27]} 33. Kc3 {[%emt 0:01:47]} Ke5 {[%emt 0:04:59]} 34. Kb3 {[%emt 0:02:06]} Kf4 {[%emt 0:01:35]} 0-1

[Event "FIDE WCCC Open-08 2024"]
[Site "Montesilvano"]
[Date "2024.11.22"]
[Round "7.43"]
[White "Kakagiannis, Stylianos"]
[Black "Reclik, Jakub"]
[Result "0-1"]
[ECO "C54"]
[WhiteElo "1423"]
[BlackElo "1458"]
[Annotator "NA RC"]
[PlyCount "178"]
[EventDate "2024.11.18"]
[EventType "swiss"]
[EventCountry "ITA"]
[SourceTitle "playchess.com"]
[Source "ChessBase"]
[SourceQuality "1"]
[TimeControl "5400+30"]

1. e4 {[%emt 0:00:03]} e5 {[%emt 0:00:08]} 2. Nf3 {[%emt 0:00:05]} Nc6 {[%emt 0:00:08]} 3. Bc4 {[%emt 0:00:07]} Bc5 {[%emt 0:00:17]} 4. c3 {[%emt 0:00:06]} Nf6 {[%emt 0:00:19]} 5. d3 {[%emt 0:00:06]} O-O {[%emt 0:00:23]} 6. O-O {[%emt 0:00:07]} d5 {[%emt 0:00:09]} 7. exd5 {[%emt 0:00:15]} Nxd5 {[%emt 0:00:11]} 8. h3 {[%emt 0:00:35]} Kh8 {[%emt 0:05:20]} 9. Re1 {[%emt 0:00:48]} f6 {[%emt 0:00:26]} 10. a4 {[%emt 0:03:18]} a6 {[%emt 0:01:56]} 11. Nbd2 {[%emt 0:01:08]} Nb6 {[%emt 0:04:31]} 12. Qe2 {[%emt 0:03:05]} Nxc4 {[%emt 0:02:07]} 13. Nxc4 {[%emt 0:04:27]} Bf5 {[%emt 0:01:03]} 14. Rd1 {[%emt 0:00:52]} Qd7 {[%emt 0:02:56]} 15. Be3 {[%emt 1:22:58]} Bxe3 {[%emt 0:05:16]} 16. fxe3 {[%emt 0:00:00]} Rad8 {[%emt 0:00:37]} 17. d4 {[%emt 0:00:00]} exd4 {[%emt 0:01:03]} 18. exd4 {[%emt 0:00:00]} Rfe8 {[%emt 1:12:40]} 19. Qf2 {[%emt 0:00:00]} Qd5 {[%emt 0:00:00]} 20. Ne3 {[%emt 0:00:00]} Qe4 {[%emt 0:00:00]} 21. Nxf5 {[%emt 0:00:00]} Qxf5 {[%emt 0:00:00]} 22. Re1 {[%emt 0:00:00]} h6 {[%emt 0:00:00]} 23. Re2 {[%emt 0:00:00]} Qd3 {[%emt 0:00:00]} 24. Rd2 {[%emt 0:00:00]} Qc4 {[%emt 0:00:00]} 25. Qg3 {[%emt 0:00:00]} Qf7 {[%emt 0:00:00]} 26. Nh4 {[%emt 0:00:00]} Rd5 {[%emt 0:00:00]} 27. Ng6+ {[%emt 0:00:00]} Kg8 {[%emt 0:00:00]} 28. Rf1 {[%emt 0:00:00]} Rg5 {[%emt 0:00:00]} 29. Qf4 {[%emt 0:00:00]} Rxg6 {[%emt 0:00:00]} 30. h4 {[%emt 0:00:00]} Qe7 {[%emt 0:00:00]} 31. Rdf2 {[%emt 0:00:00]} Kh8 {[%emt 0:00:00]} 32. Qf5 {[%emt 0:00:00]} Qf7 {[%emt 0:00:00]} 33. Qf4 {[%emt 0:00:00]} Re7 {[%emt 0:00:00]} 34. Qf5 {[%emt 0:00:00]} Qe8 {[%emt 0:00:00]} 35. Kh2 {[%emt 0:00:00]} Re4 {[%emt 0:00:00]} 36. g3 {[%emt 0:00:00]} Re2 {[%emt 0:00:00]} 37. Qf3 {[%emt 0:00:00]} Rxf2+ {[%emt 0:00:00]} 38. Rxf2 {[%emt 0:00:00]} Qd7 {[%emt 0:00:00]} 39. Re2 {[%emt 0:00:00]} f5 {[%emt 0:00:00]} 40. Rf2 {[%emt 0:00:00]} Rf6 {[%emt 0:00:00]} 41. b4 {[%emt 0:00:00]} g5 {[%emt 0:00:00]} 42. Qh5 {[%emt 0:00:00]} Qg7 {[%emt 0:12:00]} 43. Qf3 {[%emt 0:00:00]} gxh4 {[%emt 0:00:00]} 44. gxh4 {[%emt 0:00:00]} f4 {[%emt 0:00:00]} 45. Rg2 {[%emt 0:00:00]} Qf7 {[%emt 0:00:00]} 46. Rf2 {[%emt 0:00:00]} Qe7 {[%emt 0:00:00]} 47. Re2 {[%emt 0:00:00]} Qf7 {[%emt 0:00:00]} 48. Rf2 {[%emt 0:00:00]} Kh7 {[%emt 0:00:00]} 49. Rg2 {[%emt 0:00:00]} Rf5 {[%emt 0:00:00]} 50. Qe4 {[%emt 0:00:44]} Qd5 {[%emt 0:00:00]} 51. Qd3 {[%emt 0:00:44]} f3 {[%emt 0:00:00]} 52. Rf2 {[%emt 0:00:07]} Qd6+ {[%emt 0:00:00]} 53. Kg1 {[%emt 0:01:32]} Qg6+ {[%emt 0:00:00]} 54. Kf1 {[%emt 0:00:23]} Qg4 {[%emt 0:00:00]} 55. Rh2 {[%emt 0:03:22]} Qf4 {[%emt 0:00:00]} 56. Rd2 {[%emt 0:00:31]} f2 {[%emt 0:00:00]} 57. Qc2 {[%emt 0:00:25]} Qf3 {[%emt 0:00:00]} 58. Rxf2 {[%emt 0:00:33]} Qxf2+ {[%emt 0:00:00]} 59. Qxf2 {[%emt 0:00:07]} Rxf2+ {[%emt 0:00:00]} 60. Kxf2 {[%emt 0:00:07]} Kg6 {[%emt 0:00:00]} 61. Kg3 {[%emt 0:00:19]} Kf5 {[%emt 0:00:00]} 62. Kf3 {[%emt 0:00:08]} h5 {[%emt 0:00:00]} 63. b5 {[%emt 0:00:35]} axb5 {[%emt 0:00:00]} 64. axb5 {[%emt 0:00:09]} Na5 {[%emt 0:00:00]} 65. d5 {[%emt 0:00:34]} Nc4 {[%emt 0:00:00]} 66. Ke2 {[%emt 0:00:41]} Ke4 {[%emt 0:00:00]} 67. b6 {[%emt 0:00:37]} Nxb6 {[%emt 0:00:00]} 68. d6 {[%emt 0:00:15]} cxd6 {[%emt 0:00:00]} 69. c4 {[%emt 0:00:09]} Nxc4 {[%emt 0:00:00]} 70. Kf2 {[%emt 0:00:11]} Kf4 {[%emt 0:00:00]} 71. Ke2 {[%emt 0:00:07]} Kg4 {[%emt 0:00:00]} 72. Kd3 {[%emt 0:00:11]} Kxh4 {[%emt 0:00:00]} 73. Kxc4 {[%emt 0:00:12]} Kg3 {[%emt 0:00:00]} 74. Kd3 {[%emt 0:00:09]} h4 {[%emt 0:00:00]} 75. Kd4 {[%emt 0:00:04]} h3 {[%emt 0:00:00]} 76. Kd5 {[%emt 0:00:03]} h2 {[%emt 0:00:00]} 77. Kxd6 {[%emt 0:00:04]} h1=Q {[%emt 0:00:00]} 78. Ke5 {[%emt 0:00:13]} Qf3 {[%emt 0:00:00]} 79. Kd4 {[%emt 0:00:08]} b5 {[%emt 0:00:00]} 80. Kc5 {[%emt 0:00:05]} Qe4 {[%emt 0:00:00]} 81. Kxb5 {[%emt 0:00:13]} Qc2 {[%emt 0:00:00]} 82. Kb4 {[%emt 0:00:18]} Kf4 {[%emt 0:00:00]} 83. Kb5 {[%emt 0:00:11]} Qc3 {[%emt 0:00:00]} 84. Kb6 {[%emt 0:00:17]} Qc4 {[%emt 0:00:00]} 85. Ka5 {[%emt 0:00:16]} Qb3 {[%emt 0:00:00]} 86. Ka6 {[%emt 0:00:12]} Ke5 {[%emt 0:00:00]} 87. Ka5 {[%emt 0:00:13]} Kd6 {[%emt 0:00:00]} 88. Ka6 {[%emt 0:00:05]} Kc6 {[%emt 0:00:00]} 89. Ka7 {[%emt 0:00:06]} Qb7# {[%emt 0:00:00]} 0-1

[Event "FIDE WCCC Open-08 2024"]
[Site "Montesilvano"]
[Date "2024.11.22"]
[Round "7.45"]
[White "Bakirli, Matin"]
[Black "Kuncoro, Harvey"]
[Result "1-0"]
[ECO "B34"]
[WhiteElo "1578"]
[BlackElo "1432"]
[Annotator "NA RC"]
[PlyCount "97"]
[EventDate "2024.11.18"]
[EventType "swiss"]
[EventCountry "ITA"]
[SourceTitle "playchess.com"]
[Source "ChessBase"]
[SourceQuality "1"]
[TimeControl "5400+30"]

1. e4 {[%emt 0:00:02]} c5 {[%emt 0:00:10]} 2. Nf3 {[%emt 0:00:04]} Nc6 {[%emt 0:00:09]} 3. d4 {[%emt 0:00:13]} cxd4 {[%emt 0:00:11]} 4. Nxd4 {[%emt 0:00:05]} g6 {[%emt 0:00:21]} 5. Be2 {[%emt 0:01:36]} Bg7 {[%emt 0:00:13]} 6. Be3 {[%emt 0:01:12]} Nf6 {[%emt 0:01:23]} 7. Nc3 {[%emt 0:01:49]} O-O {[%emt 0:05:29]} 8. Nxc6 {[%emt 0:01:25]} bxc6 {[%emt 0:00:26]} 9. O-O {[%emt 0:01:12]} d5 {[%emt 0:02:08]} 10. exd5 {[%emt 0:01:09]} cxd5 {[%emt 0:02:01]} 11. Bf3 {[%emt 0:01:01]} Ba6 {[%emt 0:07:56]} 12. Nxd5 {[%emt 0:06:11]} Bxf1 {[%emt 0:04:20]} 13. Nxf6+ {[%emt 0:00:27]} Bxf6 {[%emt 0:02:32]} 14. Bxa8 {[%emt 0:00:38]} Qxd1 {[%emt 0:06:11]} 15. Rxd1 {[%emt 0:00:07]} Rxa8 {[%emt 0:04:07]} 16. Kxf1 {[%emt 0:00:38]} Rc8 {[%emt 0:06:18]} 17. c3 {[%emt 0:00:58]} a5 {[%emt 0:01:11]} 18. Rc1 {[%emt 0:02:53]} Kf8 {[%emt 0:03:25]} 19. Bd2 {[%emt 0:01:03]} Rb8 {[%emt 0:02:05]} 20. b3 {[%emt 0:01:14]} a4 {[%emt 0:00:28]} 21. b4 {[%emt 0:00:37]} Rd8 {[%emt 0:00:29]} 22. Ke2 {[%emt 0:00:37]} Rd6 {[%emt 0:07:22]} 23. c4 {[%emt 0:01:33]} Rxd2+ {[%emt 0:01:47]} 24. Kxd2 {[%emt 0:00:11]} Bg5+ {[%emt 0:00:12]} 25. Kc2 {[%emt 0:00:04]} Bxc1 26. Kxc1 {[%emt 0:00:05]} e5 {[%emt 0:00:25]} 27. Kd2 {[%emt 0:01:29]} f5 {[%emt 0:00:26]} 28. f3 {[%emt 0:00:30]} Ke7 {[%emt 0:01:00]} 29. c5 {[%emt 0:00:47]} Kd7 {[%emt 0:00:23]} 30. b5 {[%emt 0:00:06]} Kc7 {[%emt 0:00:08]} 31. Kd3 {[%emt 0:00:25]} h5 {[%emt 0:00:45]} 32. Kc4 {[%emt 0:00:36]} Kb7 {[%emt 0:01:22]} 33. h4 {[%emt 0:00:53]} a3 {[%emt 0:01:25]} 34. Kd5 {[%emt 0:00:45]} e4 {[%emt 0:00:10]} 35. fxe4 {[%emt 0:00:34]} f4 {[%emt 0:00:08]} 36. Ke5 {[%emt 0:00:05]} f3 {[%emt 0:01:02]} 37. gxf3 {[%emt 0:00:11]} g5 {[%emt 0:00:07]} 38. hxg5 {[%emt 0:00:09]} h4 {[%emt 0:00:28]} 39. Kf4 {[%emt 0:00:04]} h3 {[%emt 0:00:21]} 40. Kg3 {[%emt 0:00:03]} Kc7 {[%emt 0:00:07]} 41. g6 {[%emt 0:00:05]} h2 {[%emt 0:00:19]} 42. Kxh2 {[%emt 0:00:06]} Kd7 {[%emt 0:00:13]} 43. g7 {[%emt 0:00:05]} Ke6 {[%emt 0:00:12]} 44. g8=Q+ {[%emt 0:00:09]} Ke5 {[%emt 0:00:12]} 45. b6 {[%emt 0:00:05]} Kf4 {[%emt 0:00:39]} 46. b7 {[%emt 0:00:15]} Kxf3 {[%emt 0:00:10]} 47. b8=Q {[%emt 0:00:13]} Kxe4 {[%emt 0:00:38]} 48. Qc4+ {[%emt 0:00:06]} Kf3 {[%emt 0:00:10]} 49. Qbf4# {[%emt 1:20:15]} 1-0